[Event "Titled Tuesday Blitz February 14 Late 2023"]
[White "Barp, Alberto"]
[Black "Kaplan, Avi Harrison"]
[WhiteFideId "872555"]
[BlackFideId "30934559"]
[WhiteElo "2432"]
[BlackElo "2146"]
[Result "0-1"]
[Round "02"]
[TimeControl "180+2"]
[Date "2023.02.14"]
[WhiteClock "0:00:01"]
[BlackClock "0:00:15"]

1. d4 {[%clk 0:02:58]}  Nf6 {[%clk 0:02:56]} 2. c4 {[%clk 0:02:57]}  d6 {[%clk 0:02:56]} 3. Nf3 {[%clk 0:02:56]}  Nbd7 {[%clk 0:02:57]} 4. Nc3 {[%clk 0:02:54]}  e5 {[%clk 0:02:57]} 5. e4 {[%clk 0:02:54]}  c6 {[%clk 0:02:54]} 6. Be2 {[%clk 0:02:55]}  Be7 {[%clk 0:02:53]} 7. O-O {[%clk 0:02:55]}  Qc7 {[%clk 0:02:53]} 8. Qc2 {[%clk 0:02:54]}  h6 {[%clk 0:02:53]} 9. Rd1 {[%clk 0:02:54]}  O-O {[%clk 0:02:53]} 10. h3 {[%clk 0:02:41]}  Re8 {[%clk 0:02:47]} 11. Be3 {[%clk 0:02:41]}  Nf8 {[%clk 0:02:45]} 12. c5 {[%clk 0:02:39]}  exd4 {[%clk 0:02:21]} 13. cxd6 {[%clk 0:02:35]}  Bxd6 {[%clk 0:02:21]} 14. Bxd4 {[%clk 0:02:27]}  N6d7 {[%clk 0:02:18]} 15. Rac1 {[%clk 0:02:22]}  Ne5 {[%clk 0:02:01]} 16. Nxe5 {[%clk 0:01:46]}  Bxe5 {[%clk 0:01:58]} 17. Be3 {[%clk 0:00:54]}  Be6 {[%clk 0:01:47]} 18. Nb5 {[%clk 0:00:36]}  Qe7 {[%clk 0:01:25]} 19. Nd4 {[%clk 0:00:33]}  Rad8 {[%clk 0:01:25]} 20. Nf3 {[%clk 0:00:25]}  Bb8 {[%clk 0:01:21]} 21. b3 {[%clk 0:00:16]}  Ng6 {[%clk 0:01:22]} 22. Rxd8 {[%clk 0:00:14]}  Rxd8 {[%clk 0:01:22]} 23. Rd1 {[%clk 0:00:14]}  Re8 {[%clk 0:01:20]} 24. Nd4 {[%clk 0:00:13]}  Bc8 {[%clk 0:01:11]} 25. Bd3 {[%clk 0:00:13]}  Qe5 {[%clk 0:01:02]} 26. Nf3 {[%clk 0:00:13]}  Qh5 {[%clk 0:01:03]} 27. Be2 {[%clk 0:00:12]}  Ne5 {[%clk 0:01:02]} 28. Nd4 {[%clk 0:00:09]}  Qg6 {[%clk 0:01:00]} 29. Kf1 {[%clk 0:00:05]}  Nd7 {[%clk 0:00:42]} 30. Nf5 {[%clk 0:00:05]}  Nf6 {[%clk 0:00:41]} 31. f3 {[%clk 0:00:05]}  Bxf5 {[%clk 0:00:35]} 32. exf5 {[%clk 0:00:05]}  Qg3 {[%clk 0:00:36]} 33. Bf2 {[%clk 0:00:05]}  Qh2 {[%clk 0:00:36]} 34. Bc4 {[%clk 0:00:05]}  a6 {[%clk 0:00:26]} 35. Bg1 {[%clk 0:00:05]}  Qh1 {[%clk 0:00:26]} 36. g4 {[%clk 0:00:03]}  Qxf3+ {[%clk 0:00:24]} 37. Bf2 {[%clk 0:00:02]}  Qxh3+ {[%clk 0:00:24]} 38. Kg1 {[%clk 0:00:02]}  Bh2+ {[%clk 0:00:23]} 39. Kh1 {[%clk 0:00:02]}  Bg3+ {[%clk 0:00:21]} 40. Kg1 {[%clk 0:00:02]}  Qh2+ {[%clk 0:00:18]} 41. Kf1 {[%clk 0:00:03]}  Qh1+ {[%clk 0:00:19]} 42. Bg1 {[%clk 0:00:02]}  Qf3+ {[%clk 0:00:19]} 43. Bf2 {[%clk 0:00:02]}  Bxf2 {[%clk 0:00:19]} 44. Be2 {[%clk 0:00:01]}  Qg3 {[%clk 0:00:15]} 0-1


[Site "https://www.chess.com"]

[Event "Titled Tuesday Blitz February 14 Late 2023"]
[White "benny_aizenberg"]
[Black "Sai Krishna G V"]
[BlackFideId "5028280"]
[WhiteElo "2558"]
[BlackElo "2384"]
[Result "0-1"]
[Round "02"]
[TimeControl "180+2"]
[Date "2023.02.14"]
[WhiteClock "0:01:32"]
[BlackClock "0:02:21"]

1. d4 {[%clk 0:02:59]}  Nf6 {[%clk 0:02:59]} 2. c4 {[%clk 0:02:59]}  g6 {[%clk 0:03:00]} 3. Nc3 {[%clk 0:02:59]}  Bg7 {[%clk 0:03:01]} 4. e4 {[%clk 0:02:59]}  d6 {[%clk 0:03:02]} 5. Be2 {[%clk 0:02:57]}  O-O {[%clk 0:03:02]} 6. Nf3 {[%clk 0:02:58]}  e5 {[%clk 0:03:01]} 7. O-O {[%clk 0:02:57]}  Nc6 {[%clk 0:03:02]} 8. d5 {[%clk 0:02:57]}  Ne7 {[%clk 0:03:02]} 9. Ne1 {[%clk 0:02:56]}  Nd7 {[%clk 0:03:02]} 10. Nd3 {[%clk 0:02:55]}  f5 {[%clk 0:03:02]} 11. f3 {[%clk 0:02:55]}  Nf6 {[%clk 0:02:54]} 12. c5 {[%clk 0:02:46]}  f4 {[%clk 0:02:45]} 13. b4 {[%clk 0:02:45]}  g5 {[%clk 0:02:44]} 14. Qb3 {[%clk 0:02:22]}  Ng6 {[%clk 0:02:43]} 15. b5 {[%clk 0:02:22]}  b6 {[%clk 0:02:29]} 16. cxd6 {[%clk 0:02:18]}  cxd6 {[%clk 0:02:29]} 17. Ba3 {[%clk 0:02:12]}  Rf7 {[%clk 0:02:28]} 18. Nd1 {[%clk 0:02:03]}  g4 {[%clk 0:02:27]} 19. N1f2 {[%clk 0:02:03]}  g3 {[%clk 0:02:27]} 20. hxg3 {[%clk 0:02:03]}  fxg3 {[%clk 0:02:27]} 21. Ng4 {[%clk 0:02:03]}  Nxg4 {[%clk 0:02:21]} 22. fxg4 {[%clk 0:02:00]}  Qh4 {[%clk 0:02:21]} 23. Rxf7 {[%clk 0:01:31]}  Qh2+ {[%clk 0:02:20]} 24. Kf1 {[%clk 0:01:32]}  Qh1# {[%clk 0:02:21]} 0-1


[Site "https://www.chess.com"]

[Event "Titled Tuesday Blitz February 14 Late 2023"]
[White "Fernandez Guillen, Ernesto J."]
[Black "Hajiyev, Kanan"]
[WhiteFideId "3512428"]
[BlackFideId "13404148"]
[WhiteElo "2477"]
[BlackElo "2197"]
[Result "1-0"]
[Round "02"]
[TimeControl "180+2"]
[Date "2023.02.14"]
[WhiteClock "0:00:07"]
[BlackClock "0:00:04"]

1. e4 {[%clk 0:03:00]}  c6 {[%clk 0:03:00]} 2. d4 {[%clk 0:03:00]}  d5 {[%clk 0:03:00]} 3. e5 {[%clk 0:03:01]}  a6 {[%clk 0:03:00]} 4. c3 {[%clk 0:03:01]}  c5 {[%clk 0:03:00]} 5. Nf3 {[%clk 0:03:01]}  cxd4 {[%clk 0:03:01]} 6. cxd4 {[%clk 0:03:02]}  Nc6 {[%clk 0:03:01]} 7. h3 {[%clk 0:03:02]}  Bf5 {[%clk 0:03:01]} 8. Bd3 {[%clk 0:03:02]}  Bxd3 {[%clk 0:03:01]} 9. Qxd3 {[%clk 0:03:03]}  e6 {[%clk 0:03:02]} 10. Nc3 {[%clk 0:03:03]}  Bb4 {[%clk 0:03:01]} 11. O-O {[%clk 0:03:03]}  Nge7 {[%clk 0:03:01]} 12. Be3 {[%clk 0:03:00]}  O-O {[%clk 0:03:01]} 13. Rac1 {[%clk 0:03:00]}  Rc8 {[%clk 0:02:57]} 14. a3 {[%clk 0:03:00]}  Bxc3 {[%clk 0:02:54]} 15. Rxc3 {[%clk 0:03:01]}  Na5 {[%clk 0:02:45]} 16. Rfc1 {[%clk 0:02:58]}  Rxc3 {[%clk 0:02:43]} 17. Rxc3 {[%clk 0:02:59]}  Nc4 {[%clk 0:02:41]} 18. Qc2 {[%clk 0:02:50]}  Nxe3 {[%clk 0:02:36]} 19. fxe3 {[%clk 0:02:51]}  Nc6 {[%clk 0:02:36]} 20. b4 {[%clk 0:02:51]}  f6 {[%clk 0:02:32]} 21. exf6 {[%clk 0:02:49]}  Qxf6 {[%clk 0:02:32]} 22. Rc5 {[%clk 0:02:47]}  Qh6 {[%clk 0:02:24]} 23. Qe2 {[%clk 0:02:36]}  Qg6 {[%clk 0:02:18]} 24. b5 {[%clk 0:02:19]}  Qb1+ {[%clk 0:02:16]} 25. Kh2 {[%clk 0:02:18]}  axb5 {[%clk 0:02:16]} 26. Rxb5 {[%clk 0:02:19]}  Qc1 {[%clk 0:01:53]} 27. Rxb7 {[%clk 0:02:15]}  Qxa3 {[%clk 0:01:49]} 28. Qf2 {[%clk 0:01:49]}  Qd6+ {[%clk 0:01:33]} 29. Qg3 {[%clk 0:01:46]}  Qxg3+ {[%clk 0:01:32]} 30. Kxg3 {[%clk 0:01:47]}  Rf7 {[%clk 0:01:33]} 31. Rb6 {[%clk 0:01:46]}  Rc7 {[%clk 0:01:32]} 32. Kf4 {[%clk 0:01:42]}  h6 {[%clk 0:01:28]} 33. h4 {[%clk 0:01:39]}  Kf8 {[%clk 0:01:19]} 34. g4 {[%clk 0:01:35]}  Ke7 {[%clk 0:01:17]} 35. g5 {[%clk 0:01:33]}  Nd8 {[%clk 0:00:29]} 36. Ne5 {[%clk 0:01:22]}  Nf7 {[%clk 0:00:27]} 37. Ng6+ {[%clk 0:01:17]}  Kd7 {[%clk 0:00:24]} 38. Nf8+ {[%clk 0:01:16]}  Ke7 {[%clk 0:00:19]} 39. Nxe6 {[%clk 0:01:16]}  hxg5+ {[%clk 0:00:16]} 40. hxg5 {[%clk 0:01:16]}  Rc1 {[%clk 0:00:17]} 41. Nxg7 {[%clk 0:00:21]}  Rf1+ {[%clk 0:00:16]} 42. Kg4 {[%clk 0:00:21]}  Rg1+ {[%clk 0:00:17]} 43. Kf4 {[%clk 0:00:21]}  Rf1+ {[%clk 0:00:15]} 44. Kg3 {[%clk 0:00:21]}  Rg1+ {[%clk 0:00:15]} 45. Kh4 {[%clk 0:00:19]}  Rh1+ {[%clk 0:00:15]} 46. Kg4 {[%clk 0:00:19]}  Rg1+ {[%clk 0:00:15]} 47. Kf3 {[%clk 0:00:18]}  Rxg5 {[%clk 0:00:15]} 48. Rb7+ {[%clk 0:00:18]}  Kf6 {[%clk 0:00:14]} 49. Ne8+ {[%clk 0:00:19]}  Ke6 {[%clk 0:00:12]} 50. Ke2 {[%clk 0:00:16]}  Rg2+ {[%clk 0:00:09]} 51. Kd3 {[%clk 0:00:16]}  Ng5 {[%clk 0:00:09]} 52. Rb6+ {[%clk 0:00:11]}  Kf7 {[%clk 0:00:05]} 53. Nf6 {[%clk 0:00:12]}  Rg3 {[%clk 0:00:03]} 54. Nxd5 {[%clk 0:00:12]}  Nf3 {[%clk 0:00:03]} 55. Rf6+ {[%clk 0:00:11]}  Kg7 {[%clk 0:00:04]} 56. Rf4 {[%clk 0:00:11]}  Ne1+ {[%clk 0:00:04]} 57. Ke2 {[%clk 0:00:11]}  Nc2 {[%clk 0:00:04]} 58. Rf3 {[%clk 0:00:10]}  Rg2+ {[%clk 0:00:04]} 59. Rf2 {[%clk 0:00:09]}  Rg3 {[%clk 0:00:04]} 60. Kd3 {[%clk 0:00:09]}  Ne1+ {[%clk 0:00:04]} 61. Ke4 {[%clk 0:00:10]}  Ng2 {[%clk 0:00:04]} 62. Ra2 {[%clk 0:00:08]}  Kg6 {[%clk 0:00:05]} 63. Nf4+ {[%clk 0:00:08]}  Nxf4 {[%clk 0:00:03]} 64. Kxf4 {[%clk 0:00:09]}  Rg1 {[%clk 0:00:03]} 65. e4 {[%clk 0:00:09]}  Kf7 {[%clk 0:00:04]} 66. Ra7+ {[%clk 0:00:08]}  Ke6 {[%clk 0:00:04]} 67. Ra6+ {[%clk 0:00:08]}  Kd7 {[%clk 0:00:04]} 68. d5 {[%clk 0:00:09]}  Rh1 {[%clk 0:00:03]} 69. Ke5 {[%clk 0:00:09]}  Rh5+ {[%clk 0:00:02]} 70. Kd4 {[%clk 0:00:10]}  Rh4 {[%clk 0:00:03]} 71. Rg6 {[%clk 0:00:10]}  Rh1 {[%clk 0:00:04]} 72. Rg7+ {[%clk 0:00:08]}  Kd6 {[%clk 0:00:04]} 73. e5# {[%clk 0:00:07]} 1-0


[Site "https://www.chess.com"]

[Event "Titled Tuesday Blitz February 14 Late 2023"]
[White "Manukyan, Artyom"]
[Black "Maximov, Dmitry"]
[WhiteFideId "13305786"]
[BlackFideId "14105659"]
[WhiteElo "2110"]
[BlackElo "2497"]
[Result "1-0"]
[Round "02"]
[TimeControl "180+2"]
[Date "2023.02.14"]
[WhiteClock "0:02:18"]
[BlackClock "0:01:48"]

1. e4 {[%clk 0:02:57]}  c5 {[%clk 0:03:00]} 2. Nc3 {[%clk 0:02:57]}  Nc6 {[%clk 0:03:00]} 3. Bb5 {[%clk 0:02:57]}  Nd4 {[%clk 0:02:59]} 4. Nf3 {[%clk 0:02:57]}  Nxb5 {[%clk 0:02:58]} 5. Nxb5 {[%clk 0:02:58]}  a6 {[%clk 0:02:59]} 6. Nc3 {[%clk 0:02:59]}  g6 {[%clk 0:02:58]} 7. d4 {[%clk 0:02:59]}  Bg7 {[%clk 0:02:56]} 8. dxc5 {[%clk 0:03:00]}  Qa5 {[%clk 0:02:55]} 9. Bd2 {[%clk 0:02:58]}  Qxc5 {[%clk 0:02:55]} 10. Nd5 {[%clk 0:02:59]}  e6 {[%clk 0:02:41]} 11. Bb4 {[%clk 0:02:48]}  Qc6 {[%clk 0:02:39]} 12. O-O {[%clk 0:02:43]}  exd5 {[%clk 0:02:16]} 13. exd5 {[%clk 0:02:43]}  Qb6 {[%clk 0:02:17]} 14. Qe1+ {[%clk 0:02:36]}  Kd8 {[%clk 0:02:10]} 15. Ba5 {[%clk 0:02:36]}  Kc7 {[%clk 0:01:49]} 16. d6+ {[%clk 0:02:24]}  Kc6 {[%clk 0:01:48]} 17. Qe4+ {[%clk 0:02:18]} 1-0


[Site "https://www.chess.com"]

[Event "Titled Tuesday Blitz February 14 Late 2023"]
[White "Goltsev, Dmitry"]
[Black "Forgacs, Attila Jr."]
[WhiteFideId "24176710"]
[BlackFideId "773654"]
[WhiteElo "2269"]
[BlackElo "2264"]
[Result "1-0"]
[Round "02"]
[TimeControl "180+2"]
[Date "2023.02.14"]
[WhiteClock "0:01:44"]
[BlackClock "0:00:13"]

1. e4 {[%clk 0:03:00]}  e5 {[%clk 0:02:59]} 2. Nf3 {[%clk 0:03:00]}  Nc6 {[%clk 0:03:00]} 3. Bb5 {[%clk 0:03:00]}  a6 {[%clk 0:03:00]} 4. Ba4 {[%clk 0:03:00]}  d6 {[%clk 0:02:58]} 5. c3 {[%clk 0:03:00]}  f5 {[%clk 0:02:58]} 6. exf5 {[%clk 0:02:57]}  Bxf5 {[%clk 0:02:59]} 7. d4 {[%clk 0:02:58]}  e4 {[%clk 0:02:54]} 8. Ng5 {[%clk 0:02:47]}  Be7 {[%clk 0:02:26]} 9. Qb3 {[%clk 0:02:45]}  Bxg5 {[%clk 0:02:08]} 10. Bxg5 {[%clk 0:02:44]}  Qxg5 {[%clk 0:02:05]} 11. Qxb7 {[%clk 0:02:44]}  Qc1+ {[%clk 0:01:51]} 12. Bd1 {[%clk 0:02:25]}  Kd7 {[%clk 0:01:46]} 13. Qxa8 {[%clk 0:02:20]}  Qxb2 {[%clk 0:01:37]} 14. O-O {[%clk 0:02:20]}  Qxa1 {[%clk 0:01:30]} 15. Ba4 {[%clk 0:02:20]}  Ne7 {[%clk 0:01:17]} 16. Qxh8 {[%clk 0:02:21]}  Qxa2 {[%clk 0:01:13]} 17. Bxc6+ {[%clk 0:02:20]}  Nxc6 {[%clk 0:01:01]} 18. Qxg7+ {[%clk 0:02:21]}  Ne7 {[%clk 0:01:01]} 19. Qg5 {[%clk 0:02:15]}  e3 {[%clk 0:00:53]} 20. Qxe3 {[%clk 0:01:59]}  Bxb1 {[%clk 0:00:53]} 21. Re1 {[%clk 0:02:00]}  a5 {[%clk 0:00:20]} 22. Qxe7+ {[%clk 0:01:50]}  Kc6 {[%clk 0:00:20]} 23. Qe8+ {[%clk 0:01:51]}  Kb6 {[%clk 0:00:20]} 24. Qb8+ {[%clk 0:01:51]}  Ka6 {[%clk 0:00:16]} 25. Qxb1 {[%clk 0:01:52]}  Qd2 {[%clk 0:00:16]} 26. Qc1 {[%clk 0:01:51]}  Qd3 {[%clk 0:00:14]} 27. Qe3 {[%clk 0:01:43]}  Qc2 {[%clk 0:00:13]} 28. Qe2+ {[%clk 0:01:44]} 1-0


[Site "https://www.chess.com"]

[Event "Titled Tuesday Blitz February 14 Late 2023"]
[White "Abdyzhaparov, Aidar"]
[Black "Salimova, Nurgyul"]
[WhiteFideId "13800361"]
[BlackFideId "2915138"]
[WhiteElo "1978"]
[BlackElo "2391"]
[Result "0-1"]
[Round "02"]
[TimeControl "180+2"]
[Date "2023.02.14"]
[WhiteClock "0:00:25"]
[BlackClock "0:01:21"]

1. Nf3 {[%clk 0:03:00]}  b6 {[%clk 0:02:57]} 2. c4 {[%clk 0:03:01]}  Bb7 {[%clk 0:02:57]} 3. g3 {[%clk 0:03:02]}  e5 {[%clk 0:02:56]} 4. Bg2 {[%clk 0:03:02]}  e4 {[%clk 0:02:56]} 5. Nd4 {[%clk 0:03:02]}  Nf6 {[%clk 0:02:54]} 6. O-O {[%clk 0:03:01]}  d5 {[%clk 0:02:51]} 7. cxd5 {[%clk 0:03:01]}  Qxd5 {[%clk 0:02:52]} 8. Nc2 {[%clk 0:02:59]}  Nbd7 {[%clk 0:02:43]} 9. Nc3 {[%clk 0:02:59]}  Qh5 {[%clk 0:02:43]} 10. e3 {[%clk 0:02:47]}  Qxd1 {[%clk 0:02:39]} 11. Rxd1 {[%clk 0:02:46]}  O-O-O {[%clk 0:02:38]} 12. d4 {[%clk 0:02:44]}  exd3 {[%clk 0:02:36]} 13. Bxb7+ {[%clk 0:02:44]}  Kxb7 {[%clk 0:02:36]} 14. Rxd3 {[%clk 0:02:45]}  Be7 {[%clk 0:02:32]} 15. e4 {[%clk 0:02:27]}  Ne5 {[%clk 0:02:31]} 16. Rxd8 {[%clk 0:02:27]}  Rxd8 {[%clk 0:02:32]} 17. Be3 {[%clk 0:02:22]}  Nc4 {[%clk 0:02:24]} 18. b3 {[%clk 0:02:11]}  Nxe3 {[%clk 0:02:22]} 19. Nxe3 {[%clk 0:02:12]}  Bc5 {[%clk 0:02:22]} 20. Rd1 {[%clk 0:02:05]}  Re8 {[%clk 0:02:18]} 21. Nf5 {[%clk 0:01:22]}  g6 {[%clk 0:02:16]} 22. Nh6 {[%clk 0:01:22]}  Nxe4 {[%clk 0:02:13]} 23. Nxe4 {[%clk 0:01:23]}  Rxe4 {[%clk 0:02:13]} 24. Rd2 {[%clk 0:01:20]}  f5 {[%clk 0:02:13]} 25. Nf7 {[%clk 0:01:19]}  Be7 {[%clk 0:02:04]} 26. h4 {[%clk 0:01:14]}  a5 {[%clk 0:02:02]} 27. Kg2 {[%clk 0:01:14]}  a4 {[%clk 0:02:02]} 28. bxa4 {[%clk 0:01:08]}  Rxa4 {[%clk 0:02:03]} 29. Rd7 {[%clk 0:01:07]}  Bc5 {[%clk 0:02:00]} 30. Ng5 {[%clk 0:01:04]}  Rxa2 {[%clk 0:02:00]} 31. Ne6 {[%clk 0:00:58]}  Rxf2+ {[%clk 0:02:00]} 32. Kg1 {[%clk 0:00:58]}  Re2+ {[%clk 0:01:51]} 33. Nxc5+ {[%clk 0:00:57]}  bxc5 {[%clk 0:01:52]} 34. Rxh7 {[%clk 0:00:56]}  c4 {[%clk 0:01:52]} 35. Kf1 {[%clk 0:00:55]}  Rh2 {[%clk 0:01:50]} 36. Kg1 {[%clk 0:00:41]}  Ra2 {[%clk 0:01:38]} 37. Re7 {[%clk 0:00:37]}  c3 {[%clk 0:01:35]} 38. Re1 {[%clk 0:00:35]}  Kc6 {[%clk 0:01:23]} 39. Rc1 {[%clk 0:00:35]}  c2 {[%clk 0:01:23]} 40. Kf2 {[%clk 0:00:35]}  Kd5 {[%clk 0:01:22]} 41. Ke3 {[%clk 0:00:35]}  Kc4 {[%clk 0:01:23]} 42. Kd2 {[%clk 0:00:32]}  Kb3 {[%clk 0:01:23]} 43. Re1 {[%clk 0:00:25]}  c1=Q+ {[%clk 0:01:18]} 44. Kxc1 {[%clk 0:00:25]}  Ra1+ {[%clk 0:01:19]} 45. Kd2 {[%clk 0:00:26]}  Rxe1 {[%clk 0:01:20]} 46. Kxe1 {[%clk 0:00:26]}  c5 {[%clk 0:01:21]} 47. Kd2 {[%clk 0:00:27]}  c4 {[%clk 0:01:21]} 48. Kc1 {[%clk 0:00:25]}  Kc3 {[%clk 0:01:21]} 49. h5 {[%clk 0:00:25]}  gxh5 {[%clk 0:01:21]} 0-1


[Site "https://www.chess.com"]

[Event "Titled Tuesday Blitz February 14 Late 2023"]
[White "Alex_Sahakyan2006"]
[Black "Gonzalez, Francisco Silva"]
[BlackFideId "1512285"]
[WhiteElo "2696"]
[BlackElo "2021"]
[Result "0-1"]
[Round "02"]
[TimeControl "180+2"]
[Date "2023.02.14"]
[WhiteClock "0:00:04"]
[BlackClock "0:01:12"]

1. e4 {[%clk 0:03:00]}  e5 {[%clk 0:03:00]} 2. Nf3 {[%clk 0:03:00]}  Nc6 {[%clk 0:03:00]} 3. d4 {[%clk 0:03:01]}  exd4 {[%clk 0:03:00]} 4. Bc4 {[%clk 0:03:02]}  Nf6 {[%clk 0:02:58]} 5. O-O {[%clk 0:03:02]}  Nxe4 {[%clk 0:02:59]} 6. Re1 {[%clk 0:03:02]}  d5 {[%clk 0:02:59]} 7. Bxd5 {[%clk 0:03:01]}  Qxd5 {[%clk 0:02:59]} 8. Nc3 {[%clk 0:03:01]}  Qd8 {[%clk 0:03:00]} 9. Nxe4 {[%clk 0:03:00]}  Be7 {[%clk 0:03:00]} 10. Bg5 {[%clk 0:03:00]}  f6 {[%clk 0:03:01]} 11. Bf4 {[%clk 0:02:53]}  O-O {[%clk 0:02:59]} 12. Qd3 {[%clk 0:02:53]}  Kh8 {[%clk 0:02:59]} 13. Rad1 {[%clk 0:02:52]}  Bg4 {[%clk 0:02:56]} 14. h3 {[%clk 0:02:53]}  Bxf3 {[%clk 0:02:54]} 15. Qxf3 {[%clk 0:02:52]}  f5 {[%clk 0:02:48]} 16. Ng3 {[%clk 0:02:52]}  Bd6 {[%clk 0:02:41]} 17. Re6 {[%clk 0:02:34]}  Bxf4 {[%clk 0:02:36]} 18. Qxf4 {[%clk 0:02:35]}  Rf7 {[%clk 0:02:30]} 19. Rde1 {[%clk 0:02:25]}  Qd7 {[%clk 0:02:30]} 20. a3 {[%clk 0:02:21]}  Raf8 {[%clk 0:02:29]} 21. b4 {[%clk 0:02:18]}  a6 {[%clk 0:02:28]} 22. h4 {[%clk 0:02:10]}  Re7 {[%clk 0:02:25]} 23. Rxe7 {[%clk 0:02:04]}  Nxe7 {[%clk 0:02:24]} 24. h5 {[%clk 0:02:02]}  h6 {[%clk 0:02:24]} 25. Nf1 {[%clk 0:01:58]}  Nc6 {[%clk 0:02:24]} 26. Nd2 {[%clk 0:01:54]}  Qf7 {[%clk 0:02:23]} 27. Nf3 {[%clk 0:01:43]}  Qxh5 {[%clk 0:02:06]} 28. Qxc7 {[%clk 0:01:42]}  Qf7 {[%clk 0:02:06]} 29. Qf4 {[%clk 0:01:35]}  Qd5 {[%clk 0:02:05]} 30. Ne5 {[%clk 0:01:30]}  Rf6 {[%clk 0:02:02]} 31. Nd3 {[%clk 0:01:27]}  Re6 {[%clk 0:02:00]} 32. Rd1 {[%clk 0:01:17]}  Re4 {[%clk 0:01:57]} 33. Qf3 {[%clk 0:01:01]}  Ne5 {[%clk 0:01:54]} 34. Qxf5 {[%clk 0:00:59]}  Rg4 {[%clk 0:01:45]} 35. Qf8+ {[%clk 0:00:32]}  Kh7 {[%clk 0:01:44]} 36. Ne1 {[%clk 0:00:22]}  Qe4 {[%clk 0:01:38]} 37. Kf1 {[%clk 0:00:12]}  Rh4 {[%clk 0:01:34]} 38. Kg1 {[%clk 0:00:13]}  Qe2 {[%clk 0:01:26]} 39. Ra1 {[%clk 0:00:09]}  Rg4 {[%clk 0:01:23]} 40. Qf5+ {[%clk 0:00:09]}  Rg6 {[%clk 0:01:22]} 41. Nd3 {[%clk 0:00:06]}  Nf3+ {[%clk 0:01:21]} 42. Kh1 {[%clk 0:00:06]}  Nh4 {[%clk 0:01:18]} 43. Nf4 {[%clk 0:00:02]}  Qxf2 {[%clk 0:01:16]} 44. Nxg6 {[%clk 0:00:02]}  Qxf5 {[%clk 0:01:16]} 45. Nxh4 {[%clk 0:00:03]}  Qh5 {[%clk 0:01:16]} 46. g3 {[%clk 0:00:03]}  g5 {[%clk 0:01:15]} 47. Rf1 {[%clk 0:00:02]}  gxh4 {[%clk 0:01:15]} 48. Kg2 {[%clk 0:00:03]}  Qe2+ {[%clk 0:01:14]} 49. Rf2 {[%clk 0:00:03]}  h3+ {[%clk 0:01:14]} 50. Kg1 {[%clk 0:00:03]}  Qe1+ {[%clk 0:01:12]} 51. Rf1 {[%clk 0:00:04]}  Qxg3+ {[%clk 0:01:12]} 0-1


[Site "https://www.chess.com"]

[Event "Titled Tuesday Blitz February 14 Late 2023"]
[White "Levine, David"]
[Black "Yoo, Christopher Woojin"]
[WhiteFideId "2011611"]
[BlackFideId "30909694"]
[WhiteElo "2040"]
[BlackElo "2607"]
[Result "0-1"]
[Round "02"]
[TimeControl "180+2"]
[Date "2023.02.14"]
[WhiteClock "0:00:11"]
[BlackClock "0:00:17"]

1. d4 {[%clk 0:03:00]}  Nf6 {[%clk 0:02:57]} 2. c4 {[%clk 0:02:59]}  e6 {[%clk 0:02:54]} 3. g3 {[%clk 0:02:58]}  c5 {[%clk 0:02:53]} 4. d5 {[%clk 0:02:58]}  exd5 {[%clk 0:02:54]} 5. cxd5 {[%clk 0:02:58]}  d6 {[%clk 0:02:54]} 6. Nc3 {[%clk 0:02:58]}  g6 {[%clk 0:02:55]} 7. Bg2 {[%clk 0:02:58]}  Bg7 {[%clk 0:02:56]} 8. Nf3 {[%clk 0:02:58]}  O-O {[%clk 0:02:56]} 9. O-O {[%clk 0:02:59]}  a6 {[%clk 0:02:57]} 10. a4 {[%clk 0:02:58]}  Re8 {[%clk 0:02:58]} 11. Bf4 {[%clk 0:02:58]}  Ne4 {[%clk 0:02:56]} 12. Nxe4 {[%clk 0:02:51]}  Rxe4 {[%clk 0:02:57]} 13. Nd2 {[%clk 0:02:43]}  Rb4 {[%clk 0:02:57]} 14. b3 {[%clk 0:02:38]}  g5 {[%clk 0:02:30]} 15. Be3 {[%clk 0:02:31]}  Bf5 {[%clk 0:02:30]} 16. Ra2 {[%clk 0:02:15]}  b5 {[%clk 0:02:21]} 17. axb5 {[%clk 0:02:13]}  Rxb5 {[%clk 0:02:22]} 18. Nc4 {[%clk 0:02:12]}  Qe7 {[%clk 0:02:19]} 19. Qc1 {[%clk 0:01:59]}  h6 {[%clk 0:02:13]} 20. Ra3 {[%clk 0:01:56]}  Nd7 {[%clk 0:02:12]} 21. h4 {[%clk 0:01:48]}  gxh4 {[%clk 0:02:09]} 22. Bxh6 {[%clk 0:01:48]}  h3 {[%clk 0:01:23]} 23. Bf3 {[%clk 0:01:41]}  Ne5 {[%clk 0:01:22]} 24. Bxg7 {[%clk 0:01:28]}  Nxf3+ {[%clk 0:01:14]} 25. exf3 {[%clk 0:01:28]}  Kxg7 {[%clk 0:01:14]} 26. Qf4 {[%clk 0:01:22]}  Bd3 {[%clk 0:00:56]} 27. Nxd6 {[%clk 0:01:10]}  Rb4 {[%clk 0:00:52]} 28. Nf5+ {[%clk 0:01:01]}  Bxf5 {[%clk 0:00:42]} 29. Qxf5 {[%clk 0:01:01]}  Rh8 {[%clk 0:00:35]} 30. Kh2 {[%clk 0:01:00]}  Rh6 {[%clk 0:00:28]} 31. Rd1 {[%clk 0:00:56]}  Qe2 {[%clk 0:00:24]} 32. Qg5+ {[%clk 0:00:17]}  Rg6 {[%clk 0:00:24]} 33. Rd2 {[%clk 0:00:17]}  Qxf3 {[%clk 0:00:17]} 34. Qe5+ {[%clk 0:00:12]}  Kh7 {[%clk 0:00:18]} 35. d6 {[%clk 0:00:11]}  Qg2# {[%clk 0:00:17]} 0-1


[Site "https://www.chess.com"]

[Event "Titled Tuesday Blitz February 14 Late 2023"]
[White "Pasti, Aron"]
[Black "Gharibyan, Mamikon"]
[WhiteFideId "785857"]
[BlackFideId "13308300"]
[WhiteElo "2361"]
[BlackElo "2500"]
[Result "0-1"]
[Round "02"]
[TimeControl "180+2"]
[Date "2023.02.14"]
[WhiteClock "0:00:56"]
[BlackClock "0:01:49"]

1. e4 {[%clk 0:03:00]}  e5 {[%clk 0:02:56]} 2. Nf3 {[%clk 0:03:00]}  Nc6 {[%clk 0:02:57]} 3. Bb5 {[%clk 0:03:01]}  a6 {[%clk 0:02:55]} 4. Ba4 {[%clk 0:03:01]}  Nf6 {[%clk 0:02:55]} 5. O-O {[%clk 0:03:02]}  Nxe4 {[%clk 0:02:54]} 6. d4 {[%clk 0:03:01]}  b5 {[%clk 0:02:55]} 7. Bb3 {[%clk 0:03:02]}  d5 {[%clk 0:02:55]} 8. dxe5 {[%clk 0:03:02]}  Be6 {[%clk 0:02:56]} 9. Nbd2 {[%clk 0:03:03]}  Nc5 {[%clk 0:02:51]} 10. c3 {[%clk 0:03:03]}  d4 {[%clk 0:02:46]} 11. Bc2 {[%clk 0:03:00]}  d3 {[%clk 0:02:43]} 12. Bb1 {[%clk 0:03:00]}  Qd5 {[%clk 0:02:42]} 13. Nb3 {[%clk 0:02:57]}  O-O-O {[%clk 0:02:42]} 14. Nbd4 {[%clk 0:02:52]}  Be7 {[%clk 0:02:15]} 15. b4 {[%clk 0:02:33]}  Na4 {[%clk 0:02:10]} 16. Qxd3 {[%clk 0:02:20]}  Nxe5 {[%clk 0:02:05]} 17. Nxe5 {[%clk 0:02:14]}  Qxe5 {[%clk 0:02:06]} 18. Be3 {[%clk 0:01:37]}  Bc4 {[%clk 0:02:01]} 19. Qf5+ {[%clk 0:01:35]}  Qxf5 {[%clk 0:02:01]} 20. Bxf5+ {[%clk 0:01:35]}  Kb7 {[%clk 0:02:01]} 21. Rfc1 {[%clk 0:01:29]}  Bf6 {[%clk 0:01:56]} 22. Nb3 {[%clk 0:00:59]}  Bxb3 {[%clk 0:01:50]} 23. axb3 {[%clk 0:00:59]}  Nxc3 {[%clk 0:01:50]} 24. Be4+ {[%clk 0:00:56]}  Nxe4 {[%clk 0:01:49]} 0-1


[Site "https://www.chess.com"]